{"text_format":"3","workbook":"xlsx","n_sheets":1,"sheets":["Бизнесті бастау шығындары"],"not_rendered":{"defined_names":1},"read":"whole","date_system":"1900"}

{"sheet":"Бизнесті бастау шығындары","index":0,"n_rows":134,"n_cols":4,"rows_kept":134,"merged":[[16,1,16,3],[23,1,23,3],[31,1,31,3],[40,1,40,3],[48,1,48,3],[56,1,56,3],[61,1,61,3],[63,1,63,3],[65,1,65,3],[82,1,82,3],[89,1,89,3],[94,1,94,3],[104,1,104,3],[116,1,116,3],[124,1,124,3],[129,1,129,3]]}
["БИЗНЕСТІ БАСТАУ ШЫҒЫНДАРЫ",null,null,"CONTOSO, LTD"]
{"$rows_empty":8}
[null,"БИЗНЕСТІ БАСТАУ ШЫҒЫНДАРЫ"]
[null,"ҒИМАРАТТАР/ЖЫЛЖЫМАЙТЫН МҮЛІК"," ","СОМА"]
[null,"Сатып алу",null,{"v":0,"d":"Т0.00"}]
[null,"Құрылыс",null,{"v":0,"d":"Т0.00"}]
[null,"Қайта жобалау",null,{"v":0,"d":"Т0.00"}]
[null,"Басқа",null,{"v":0,"d":"Т0.00"}]
[null,"Қорытынды",null,{"$f":"SUBTOTAL(109,ЖылжымайтынМүліккестесі[СОМА])","v":{"v":0,"d":"Т0.00"}}]
[]
[null,"ЖАЛДАУ ЖАҚСАРТУЛАРЫ"," ","СОМА"]
[null,"1-бірлік",null,{"v":0,"d":"Т0.00"}]
[null,"2-бірлік",null,{"v":0,"d":"Т0.00"}]
[null,"3-бірлік",null,{"v":0,"d":"Т0.00"}]
[null,"4-бірлік",null,{"v":0,"d":"Т0.00"}]
[null,"Қорытынды",null,{"$f":"SUBTOTAL(109,Жақсатртуларкестесі[СОМА])","v":{"v":0,"d":"Т0.00"}}]
[]
[null,"НЕГІЗГІ ЖАБДЫҚТАР ТІЗІМІ"," ","СОМА"]
[null,"Жиһаз",null,{"v":0,"d":"Т0.00"}]
[null,"Жабдық",null,{"v":0,"d":"Т0.00"}]
[null,"Арматура",null,{"v":0,"d":"Т0.00"}]
[null,"Машиналар",null,{"v":0,"d":"Т0.00"}]
[null,"Басқа",null,{"v":0,"d":"Т0.00"}]
[null,"Қорытынды",null,{"$f":"SUBTOTAL(109,Капиталкестесі[СОМА])","v":{"v":0,"d":"Т0.00"}}]
[]
[null,"ОРНАЛАСУ ЖӘНЕ БАСҚАРУ ШЫҒЫНДАРЫ"," ","СОМА"]
[null,"Жал",null,{"v":0,"d":"Т0.00"}]
[null,"Қосымша депозиттер",null,{"v":0,"d":"Т0.00"}]
[null,"Заңды және бухгалтерлік ақылар",null,{"v":0,"d":"Т0.00"}]
[null,"Алдын ала төленген сақтандыру",null,{"v":0,"d":"Т0.00"}]
[null,"Ашылу алдындағы жалақылар",null,{"v":0,"d":"Т0.00"}]
[null,"Басқа",null,{"v":0,"d":"Т0.00"}]
[null,"Қорытынды",null,{"$f":"SUBTOTAL(109,ӘкімшілікШығындаркестесі[СОМА])","v":{"v":0,"d":"Т0.00"}}]
[]
[null,"АШЫЛУ КЕЗІНДЕГІ ИНВЕНТАРИЗАЦИЯ"," ","СОМА"]
[null,"1-санат",null,{"v":0,"d":"Т0.00"}]
[null,"2-санат",null,{"v":0,"d":"Т0.00"}]
[null,"3-санат",null,{"v":0,"d":"Т0.00"}]
[null,"4-санат",null,{"v":0,"d":"Т0.00"}]
[null,"5-санат",null,{"v":0,"d":"Т0.00"}]
[null,"Қорытынды",null,{"$f":"SUBTOTAL(109,АшуМүліккестесі[СОМА])","v":{"v":0,"d":"Т0.00"}}]
[]
[null,"ЖАРНАМА ЖӘНЕ КАМПАНИЯЛАР ӨТКІЗУ ШЫҒЫНДАРЫ"," ","СОМА"]
[null,"Жарнама",null,{"v":0,"d":"Т0.00"}]
[null,"Қолтаңба",null,{"v":0,"d":"Т0.00"}]
[null,"Баспа",null,{"v":0,"d":"Т0.00"}]
[null,"Саяхат/ойын-сауық",null,{"v":0,"d":"Т0.00"}]
[null,"Басқа/қосымша санаттар",null,{"v":0,"d":"Т0.00"}]
[null,"Қорытынды",null,{"$f":"SUBTOTAL(109,ПромоШығындаркестесі[СОМА])","v":{"v":0,"d":"Т0.00"}}]
[]
[null,"БАСҚА ШЫҒЫНДАР"," ","СОМА"]
[null,"Басқа шығындар 1",null,{"v":0,"d":"Т0.00"}]
[null,"Басқа шығындар 2",null,{"v":0,"d":"Т0.00"}]
[null,"Қорытынды",null,{"$f":"SUBTOTAL(109,БасқаШығындаркестесі[СОМА])","v":{"v":0,"d":"Т0.00"}}]
[]
[null,"Күтпеген жағдайлар резерві",null,{"v":0,"d":"Т0.00"}]
[]
[null,"Жұмыс капиталы",null,{"v":0,"d":"Т0.00"}]
{"$rows_empty":10}
[null,"КАПИТАЛ КӨЗДЕРІ"]
[null,"ИЕЛЕРІНІҢ ИНВЕСТИЦИЯСЫ (АТЫ & ИЕЛІК %)"," ","СОМА"]
[null,"Атыңыз және пайыздық иелігіңіз",null,{"v":0,"d":"Т0.00"}]
[null,"Басқа инвестор",null,{"v":0,"d":"Т0.00"}]
[null,"Басқа инвестор",null,{"v":0,"d":"Т0.00"}]
[null,"Басқа инвестор",null,{"v":0,"d":"Т0.00"}]
[null,"Қорытынды",null,{"$f":"SUBTOTAL(109,Иелерсалымдарыкестесі[СОМА])","v":{"v":0,"d":"Т0.00"}}]
[]
[null,"БАНК НЕСИЕЛЕРІ"," ","СОМА"]
[null,"1-банк",null,{"v":0,"d":"Т0.00"}]
[null,"2-банк",null,{"v":0,"d":"Т0.00"}]
[null,"3-банк",null,{"v":0,"d":"Т0.00"}]
[null,"4-банк",null,{"v":0,"d":"Т0.00"}]
[null,"Қорытынды",null,{"$f":"SUBTOTAL(109,БанкНесиелерікестесі[СОМА])","v":{"v":0,"d":"Т0.00"}}]
[]
[null,"БАСҚА НЕСИЕЛЕР"," ","СОМА"]
[null,"1-көз",null,{"v":0,"d":"Т0.00"}]
[null,"2-көз",null,{"v":0,"d":"Т0.00"}]
[null,"Қорытынды",null,{"$f":"SUBTOTAL(109,БасқаНесиелеркестесі[СОМА])","v":{"v":0,"d":"Т0.00"}}]
[]
[]
[]
[]
[null,"ТҮЙІН МӘЛІМДЕМЕСІ"]
[null,"КАПИТАЛ КӨЗІ"," ","ҚОРЫТЫНДЫЛАР"]
[null,"Иелерінің және басқа инвестициялар",null,{"$f":"Иелерсалымдарыкестесі[[#Totals],[СОМА]]","v":{"v":0,"d":"Т0.00"}}]
[null,"Банк несиелері",null,{"$f":"БанкНесиелерікестесі[[#Totals],[СОМА]]","v":{"v":0,"d":"Т0.00"}}]
[null,"Басқа несиелер",null,{"$f":"БасқаНесиелеркестесі[[#Totals],[СОМА]]","v":{"v":0,"d":"Т0.00"}}]
[null,"Қорытынды",null,{"$f":"SUBTOTAL(109,КапиталКөздерікестесі[ҚОРЫТЫНДЫЛАР])","v":{"v":0,"d":"Т0.00"}}]
[]
[null,"БИЗНЕСТІ БАСТАУ ШЫҒЫНДАРЫ"," ","ҚОРЫТЫНДЫЛАР"]
[null,"Ғимараттар/жылжымайтын мүлік",null,{"$f":"ЖылжымайтынМүліккестесі[[#Totals],[СОМА]]","v":{"v":0,"d":"Т0.00"}}]
[null,"Жалдау жақсартулары",null,{"$f":"Жақсатртуларкестесі[[#Totals],[СОМА]]","v":{"v":0,"d":"Т0.00"}}]
[null,"Негізгі жабдықтар",null,{"$f":"Капиталкестесі[[#Totals],[СОМА]]","v":{"v":0,"d":"Т0.00"}}]
[null,"Орналасу/басқару шығындары",null,{"$f":"ӘкімшілікШығындаркестесі[[#Totals],[СОМА]]","v":{"v":0,"d":"Т0.00"}}]
[null,"Ашу кезіндегі инвентаризация",null,{"$f":"АшуМүліккестесі[[#Totals],[СОМА]]","v":{"v":0,"d":"Т0.00"}}]
[null,"Жарнама/кампаниялар өткізу шығындары",null,{"$f":"ПромоШығындаркестесі[[#Totals],[СОМА]]","v":{"v":0,"d":"Т0.00"}}]
[null,"Басқа шығындар",null,{"$f":"БасқаШығындаркестесі[[#Totals],[СОМА]]","v":{"v":0,"d":"Т0.00"}}]
[null,"Күтпеген жағдайлар қоры",null,{"$f":"SUM(Мүмкіндіктеркестесі[[#All],[ ]])","v":{"v":0,"d":"Т0.00"}}]
[null,"Жұмыс капиталы",null,{"$f":"SUM(ЖұмысКапиталыкестесі[[#All],[ ]])","v":{"v":0,"d":"Т0.00"}}]
[null,"Қорытынды",null,{"$f":"SUBTOTAL(109,БастапқыШығындаркестесі[ҚОРЫТЫНДЫЛАР])","v":{"v":0,"d":"Т0.00"}}]
[]
[null,"НЕСИЕ ҰСЫНЫСТАРЫ ҮШІН КЕПІЛ"]
[null,"НЕСИЕЛЕРДІҢ КЕПІЛІ","СИПАТТАМА","МӘН"]
[null,"Жылжымайтын мүлік",null,{"v":0,"d":"Т0.00"}]
[null,"Басқа кепіл",null,{"v":0,"d":"Т0.00"}]
[null,"Басқа кепіл",null,{"v":0,"d":"Т0.00"}]
[null,"Басқа кепіл",null,{"v":0,"d":"Т0.00"}]
[null,"Қорытынды",null,{"$f":"SUBTOTAL(109,Қамсыздандырукестесі[МӘН])","v":{"v":0,"d":"Т0.00"}}]
[]
[null,"ИЕЛЕР"," ","  "]
[null,"Атыңыз"]
[null,"Басқа ие"]
[null,"Басқа ие"]
[]
[null,"НЕСИЕ КЕПІЛДІК БЕРУШІЛЕРІ (ИЕЛЕРІНЕН БАСҚА)"," ","  "]
[null,"Несиеге кепілдік беруші 1"]
[null,"Несиеге кепілдік беруші 2"]
[null,"Несиеге кепілдік беруші 3"]